Cogmind - Beta 9 *** ADVENTURER MODE // 2019.10.27 @ 20:17:05 Player: Armok Result: Self-destructed Performance ------------- Evolutions (3) 1500 Regions Visited (5) 1000 Robots Destroyed (16) 80 Value Destroyed (357) 357 Prototype IDs (3) 60 Alien Tech Used (0) 0 Bonus (0) 0 TOTAL SCORE: 2997 Bonus ------- None Cogmind --------- Core Integrity 577/700 Matter 241/300 Energy 145/150 System Corruption 0% Temperature Cool (19) Location -7/Factory Parts ------- Power (2) Micro Nuclear Core Propulsion (5) Flight Unit Cesium-ion Thruster Improved Cesium-ion Thruster Utility (4) Improved Sensor Array Targeting Computer Improved Melee Analysis Suite Microactuators Weapon (2) Inventory (4) Light Nuclear Core Remote Datajack Spear Peak State ------------ Power Micro Nuclear Core Light Angular Momentum Engine Propulsion Cesium-ion Thruster Cesium-ion Thruster Xenon Bombardment Thruster Xenon Bombardment Thruster Improved Cesium-ion Thruster Utility Improved Sensor Array Targeting Computer Improved Melee Analysis Suite Microactuators Weapon Greatsword Inventory Light Nuclear Core Flight Unit Remote Datajack Spear [Rating: 48] Favorites ----------- Power Light Nuclear Core Engine Ion Engine Power Core Light Nuclear Core Propulsion Flight Unit Wheel Compact Wheel Flight Unit Flight Unit Utility Targeting Computer Device Improved Sensor Array Storage Small Storage Unit Processor Targeting Computer Weapon Light Assault Rifle Energy Gun Small Laser Ballistic Gun Light Assault Rifle Launcher Heavy Missile Launcher Slashing Weapon Greatsword Special Melee Weapon Datajack Build | -11 -10 -9 -9 -8 -7 ------- Run | Scr Mat Mat Min Mat Fac Slots Evolved 6 | . . 2 . 2 2 Power 1 | . . . . . 1 Propulsion 3 | . . 1 . 1 1 Utility 2 | . . 1 . 1 . Weapon . | . . . . . . Parts Attached 40 | 7 4 5 4 1 19 Power 7 | 1 . 2 . . 4 Engine 3 | 1 . 1 . . 1 Core 4 | . . 1 . . 3 Reactor . | . . . . . . Propulsion 16 | 2 3 1 2 1 7 Treads . | . . . . . . Leg . | . . . . . . Wheel 2 | 2 . . . . . Hover . | . . . . . . Flight 14 | . 3 1 2 1 7 Utility 7 | 1 1 2 . . 3 Device 2 | . . 1 . . 1 Storage 2 | 1 . 1 . . . Processor 3 | . 1 . . . 2 Hackware . | . . . . . . Protection . | . . . . . . Artifact . | . . . . . . Weapon 10 | 3 . . 2 . 5 Energy Gun 4 | 1 . . 1 . 2 Energy Cannon . | . . . . . . Ballistic Gun 2 | 2 . . . . . Ballistic Cannon . | . . . . . . Launcher 1 | . . . . . 1 Special Weapon . | . . . . . . Impact Weapon . | . . . . . . Slashing Weapon 2 | . . . . . 2 Piercing Weapon . | . . . . . . Special Melee Weapon 1 | . . . 1 . . Unidentified Prototypes 3 | . . 1 . . 2 Parts Lost 9 | . 1 . 2 . 6 Power 1 | . . . . . 1 Propulsion 5 | . 1 . 1 . 3 Utility . | . . . . . . Weapon 3 | . . . 1 . 2 Highest Loss Streak 5 | . 1 . 1 . 5 Average Slot Usage (%) 92 | . 82 97 98 90 90 Engine 2 | . 14 . . . 1 Core 10 | . . 10 11 9 12 Flight 33 | . 24 33 32 36 36 Device 10 | . . 9 11 9 12 Storage 5 | . 3 10 11 9 . Processor 12 | . 8 11 11 9 14 Energy Gun 3 | . . . 9 9 2 Ballistic Gun 9 | . 28 22 7 . . Slashing Weapon 2 | . . . . . 5 Special Melee Weapon 1 | . . . 4 9 . Naked Turns . | . . . . . . Heaviest Build 23 | 12 11 12 12 12 23 Greatest Support 34 | 32 32 12 12 12 34 Greatest Overweight (x) 1 | . . . 1 . 1 Average Overweight (x) . | . . . . . . Largest Inventory Capacity 6 | 6 6 6 6 6 6 Average Capacity 4 | 5 4 5 6 6 4 Most Carried 6 | 3 5 6 6 5 6 Average Carried 4 | 1 3 5 5 5 3 Final Capacity 4 | . . . . . 4 Final Carried 3 | . . . . . 3 Class Distribution -------------------- 54% | Mutant 38% | Sprinter 3% | Scavenger-Sprinter Dominant Class ---------------- Mutant | -10/Materials Mutant | -9/Materials Mutant | -9/Mines Scavenger-Mutant | -8/Materials Sprinter | -7/Factory Resources | -11 -10 -9 -9 -8 -7 ----------- Run | Scr Mat Mat Min Mat Fac Matter Collected 558 | 232 14 143 33 . 136 Remotely . | . . . . . . Salvage Created 426 | . 28 50 104 . 244 Parts 28 | . . 7 10 . 11 Haulers Intercepted . | . . . . . . Recyclers Shooed . | . . . . . . Parts Field Recycled . | . . . . . . Retrieved Matter . | . . . . . . Parts Self-Destructed . | . . . . . . Prevented . | . . . . . . Kills | -11 -10 -9 -9 -8 -7 ------- Run | Scr Mat Mat Min Mat Fac Combat Hostiles Destroyed 15 | . 2 3 5 . 5 Melee 5 | . . . . . 5 Guns 10 | . 2 3 5 . . Classes Destroyed 4 | . 1 . 1 . 2 Watcher 1 | . . . . . 1 Swarmer 11 | . 2 3 4 . 2 Grunt 3 | . . . 1 . 2 Programmer 1 | . . . . . 1 Best Kill Streak 4 | . 2 3 4 . 4 Combat Bots Only 4 | . 2 3 4 . 4 Max Kills in Single Turn 1 | . 1 1 1 . 1 Gunslinging . | . . . . . . Exploded . | . . . . . . Melee 1 | . . . . . 1 Uniques/NPCs Destroyed . | . . . . . . Combat | -11 -10 -9 -9 -8 -7 -------- Run | Scr Mat Mat Min Mat Fac Damage Taken 961 | . 143 124 127 50 517 Core 204 | . 51 18 . 12 123 Absorbed by Shields . | . . . . . . Core Remaining (%) 92 | 100 79 . 95 97 . Volleys Fired 29 | . 8 9 12 . . Largest 2 | . 2 2 2 . . Hottest 60 | . 40 40 60 . . Shots Fired 52 | . 16 18 18 . . Gun 52 | . 16 18 18 . . Cannon . | . . . . . . Launcher . | . . . . . . Special . | . . . . . . Kinetic 43 | . 16 18 9 . . Thermal 9 | . . . 9 . . Explosive . | . . . . . . Electromagnetic . | . . . . . . Robot Hit Streak 18 | . 7 11 18 . . Robot Miss Streak 1 | . 1 1 1 . . Penetration Max . | . . . . . . Secondary Targets 1 | . 1 . . . . Max Gunslinging Chain 1 | . 1 . . . . Shots Hit Robots 55 | . 13 14 16 . 12 Core Hits 23 | . 3 5 9 . 6 Critical Hits . | . . . . . . Critical Kills . | . . . . . . Critical Parts Destroyed . | . . . . . . Melee Attacks 18 | . . . 3 . 15 Impact . | . . . . . . Slashing 15 | . . . . . 15 Piercing . | . . . . . . Sneak Attacks 3 | . . . 3 . . Combat Hostiles . | . . . . . . Follow-up Attacks . | . . . . . . Damage Inflicted 996 | . 103 107 133 . 653 Guns 343 | . 103 107 133 . . Cannons . | . . . . . . Explosions . | . . . . . . Melee 653 | . . . . . 653 Ramming . | . . . . . . Kinetic 255 | . 103 107 45 . . Thermal 88 | . . . 88 . . Explosive . | . . . . . . Electromagnetic . | . . . . . . Impact . | . . . . . . Slashing 653 | . . . . . 653 Piercing . | . . . . . . Highest Corruption . | . . . . . . Average Corruption . | . . . . . . Corruption Purged . | . . . . . . Overload Shots . | . . . . . . Overflow Damage 68 | . . . . . 68 Projectiles . | . . . . . . Explosions . | . . . . . . Melee 68 | . . . . . 68 Knockbacks . | . . . . . . Impact . | . . . . . . Kinetic . | . . . . . . Secondary . | . . . . . . Self-Inflicted Damage . | . . . . . . Shots . | . . . . . . Rammed . | . . . . . . Targets Rammed . | . . . . . . Kicked . | . . . . . . Crushed . | . . . . . . Highest Temperature 254 | . 33 8 37 9 254 Average Temperature 38 | . 12 4 12 9 47 Received Heat Transfer 237 | . 63 9 27 27 111 Siege Activations . | . . . . . . Robots Corrupted . | . . . . . . Combat Hostiles . | . . . . . . Parts Fried . | . . . . . . Impact Corruptions . | . . . . . . Robots Melted . | . . . . . . Combat Hostiles . | . . . . . . Parts Melted . | . . . . . . Heat Transferred 200 | . . . 200 . . Parts Sabotaged . | . . . . . . Parts Stolen . | . . . . . . Parts Stripped . | . . . . . . Power Chain Reactions . | . . . . . . Missiles Intercepted . | . . . . . . Alert | -11 -10 -9 -9 -8 -7 ------- Run | Scr Mat Mat Min Mat Fac Peak Influence 146 | . 56 120 144 92 146 Average Influence 56 | . 12 60 93 69 55 Maximum Alert Level . | . . . . . . Low Security (%) 100 | . . . . . . Level 1 . | . . . . . . Level 2 . | . . . . . . Level 3 . | . . . . . . Level 4 . | . . . . . . Level 5 . | . . . . . . High Security . | . . . . . . Max Security . | . . . . . . Squads Dispatched 3 | . . . . 1 2 Investigation . | . . . . . . Extermination 1 | . . . . . 1 Reinforcement 2 | . . . . 1 1 Assault . | . . . . . . Garrison . | . . . . . . Intercept . | . . . . . . Construction Impeded . | . . . . . . Haulers Reinforced . | . . . . . . Stealth | -11 -10 -9 -9 -8 -7 --------- Run | Scr Mat Mat Min Mat Fac Distress Signals 5 | . 1 1 . 1 2 Communications Jammed . | . . . . . . Distress Signals . | . . . . . . Times Spotted 70 | . 11 11 11 8 29 Peak Tracking Total 11 | . 6 7 7 11 11 Tactical Retreats 8 | . 2 . 1 . 5 Traps | -11 -10 -9 -9 -8 -7 ------- Run | Scr Mat Mat Min Mat Fac Traps Triggered . | . . . . . . Indirectly . | . . . . . . Trap Hack Attempts . | . . . . . . Triggered . | . . . . . . Disarmed . | . . . . . . Reprogrammed . | . . . . . . Reused . | . . . . . . Traps Extracted . | . . . . . . Installed . | . . . . . . Triggered . | . . . . . . Machines | -11 -10 -9 -9 -8 -7 ---------- Run | Scr Mat Mat Min Mat Fac Machines Disabled . | . . . . . . Max in Single Turn . | . . . . . . Machines Sabotaged . | . . . . . . Garrisons Compromised . | . . . . . . Overloaded Fab Kills . | . . . . . . Fab Network Shutdowns . | . . . . . . Hacking | -11 -10 -9 -9 -8 -7 --------- Run | Scr Mat Mat Min Mat Fac Machines Accessed 8 | . 1 2 . . 5 Terminals 8 | . 1 2 . . 5 Fabricators . | . . . . . . Repair Stations . | . . . . . . Recycling Units . | . . . . . . Scanalyzers . | . . . . . . Garrison Access . | . . . . . . Total Hacks 14 | . 2 4 . . 8 Successful 9 | . 1 2 . . 6 Failed 5 | . 1 2 . . 2 Catastrophic . | . . . . . . Database Lockouts . | . . . . . . Manual 6 | . 1 . . . 5 Terminals 14 | . 2 4 . . 8 Fabricators . | . . . . . . Repair Stations . | . . . . . . Recycling Units . | . . . . . . Scanalyzers . | . . . . . . Garrison Access . | . . . . . . Terminal Hacks 6 | . 1 2 . . 3 Branch Access Points 1 | . 1 . . . . Unreport Threat 1 | . . . . . 1 Locate Traps 1 | . . . . . 1 Dispatch Records 1 | . . 1 . . . Patrol Status 1 | . . . . . 1 Transport Status 1 | . . 1 . . . Fabricator Hacks . | . . . . . . Repair Station Hacks . | . . . . . . Recycling Unit Hacks . | . . . . . . Scanalyzer . | . . . . . . Garrison Access Hacks . | . . . . . . Unauthorized Hacks 9 | . 1 . . . 8 Terminals 3 | . . . . . 3 Assimilate 3 | . . . . . 3 Fabricators . | . . . . . . Repair Stations . | . . . . . . Recycling Units . | . . . . . . Scanalyzers . | . . . . . . Garrison Access . | . . . . . . Data Cores Recovered . | . . . . . . Used . | . . . . . . Hacking Detections 6 | . 1 2 . . 3 Full Trace Events . | . . . . . . Feedback Events . | . . . . . . Feedback Blocked . | . . . . . . Robot Schematics Acquired . | . . . . . . Robots Built . | . . . . . . Matter . | . . . . . . Time . | . . . . . . Total Robot Build Rating . | . . . . . . Part Schematics Acquired . | . . . . . . Parts Built . | . . . . . . Matter . | . . . . . . Time . | . . . . . . Total Part Build Rating . | . . . . . . Parts Repaired . | . . . . . . Time . | . . . . . . Parts Recycled . | . . . . . . Recycled Matter . | . . . . . . Retrieved Matter . | . . . . . . Retrieved Components . | . . . . . . Parts Scanalyzed . | . . . . . . Part Schematics Acquired . | . . . . . . Parts Damaged . | . . . . . . Bothacking | -11 -10 -9 -9 -8 -7 ------------ Run | Scr Mat Mat Min Mat Fac Used RIF Installer . | . . . . . . Robots Hacked 2 | . . . 2 . . Non-combat 2 | . . . 2 . . Combat . | . . . . . . Robot Hacks Applied 3 | . . . 3 . . parse_system 2 | . . . 2 . . no_distress 1 | . . . 1 . . Relay Couplers Released . | . . . . . . Robots Rewired . | . . . . . . Allies Hacked . | . . . . . . Hacks Repelled . | . . . . . . Allies | -11 -10 -9 -9 -8 -7 -------- Run | Scr Mat Mat Min Mat Fac Total Allies 1 | . . . . . 1 Largest Group 1 | . . . . . 1 Highest-Rated Group 10 | . . . . . 10 Highest-Rated Ally 10 | . . . . . 10 Total Orders . | . . . . . . Ally Attacks . | . . . . . . Total Damage . | . . . . . . Kills . | . . . . . . Allies Corrupted . | . . . . . . Allies Melted . | . . . . . . Intel | -11 -10 -9 -9 -8 -7 ------- Run | Scr Mat Mat Min Mat Fac Robot Analysis Total . | . . . . . . Derelict Logs Recovered 1 | . . . 1 . . Drone Launches . | . . . . . . Drone Recoveries . | . . . . . . Exploration | -11 -10 -9 -9 -8 -7 ------------- Run | Scr Mat Mat Min Mat Fac Turns Passed 1127 | 57 138 175 233 38 486 Spaces Moved 2412 | 42 232 284 514 107 1233 Core 1 | 1 . . . . . Treads . | . . . . . . Legs . | . . . . . . Wheels 55 | 41 14 . . . . Hover . | . . . . . . Flight 2356 | . 218 284 514 107 1233 Fastest Speed 27 | 50 37 34 34 34 27 Average Speed 33 | 98 40 34 34 34 29 Slowest Speed 117 | 100 100 34 117 34 107 Overloaded Moves . | . . . . . . Propulsion Burnouts . | . . . . . . Robots Hopped 16 | . . 6 3 3 4 Cave-ins Triggered . | . . . . . . Exploration Rate (%) 33 | 3 37 26 82 18 34 Regions Visited 5 Branch Regions 1 Pre-discovered Areas 1 | . . . 1 . . Known Exits Taken . | . . . . . . Unknown Exits Taken 5 | 1 1 1 1 1 . Scrap Searched 1 | . . . 1 . . Spaces Dug . | . . . . . . Terrain Destroyed . | . . . . . . Melee . | . . . . . . Projectile . | . . . . . . AOE . | . . . . . . Actions | -11 -10 -9 -9 -8 -7 --------- Run | Scr Mat Mat Min Mat Fac Total 2655 | 57 263 341 549 104 1341 Wait 91 | . 5 39 12 . 35 Move 2378 | 41 231 271 507 101 1227 Hop 13 | . . 6 3 2 2 Pick Up 52 | 8 9 8 5 . 22 Fast Attach . | . . . . . . Attach 24 | 7 2 3 2 1 9 Detach 2 | 1 . . . . 1 Swap 17 | . 2 2 2 . 11 Drop 31 | . 6 3 3 . 19 Fire 29 | . 8 9 12 . . Melee 18 | . . . 3 . 15 Ram . | . . . . . . Kick . | . . . . . . Crush . | . . . . . . Escape Stasis . | . . . . . . Rewire . | . . . . . . Trap . | . . . . . . Miscellaneous . | . . . . . . Route ------- -11/Scrapyard -10/Materials (discovered 3 exits: *Mat / Min x2) -9/Materials (discovered 2 exits: [*Min x2]) -9/Mines (discovered 2 exits: [*Mat x2]) -8/Materials -7/Factory (discovered 3 exits: [*Fac] / [*Low x2]) History --------- Turn | Location | Event 23 | -11/Scrapyard | Discovered new exit (range 16) 58 | -11/Scrapyard | Entered Materials 145 | -10/Materials | Identified exit to Mines 185 | -10/Materials | Discovered new exit (range 16) 196 | -10/Materials | Entered another Materials area 196 | -9/Materials | Evolved 2 slots: Propulsion x1, Utility x1 200 | -9/Materials | Discovered new exit (range 16) 302 | -9/Materials | Build established: Mutant 367 | -9/Materials | Discovered new exit (range 10) 371 | -9/Materials | Entered Mines 376 | -9/Mines | Discovered new exit (range 11) 603 | -9/Mines | Discovered new exit (range 3) 604 | -9/Mines | Entered Materials 604 | -8/Materials | Evolved 2 slots: Propulsion x1, Utility x1 638 | -8/Materials | Discovered new exit (range 8) 642 | -8/Materials | Entered Factory 642 | -7/Factory | Evolved 2 slots: Power x1, Propulsion x1 677 | -7/Factory | Discovered new exit (range 5) 896 | -7/Factory | Discovered new exit (range 12) 917 | -7/Factory | Discovered new exit (range 11) 965 | -7/Factory | Build established: Sprinter 1128 | -7/Factory | Self-destructed Last Messages --------------- 01063_ W-25 Informer distress signal alerts nearby ally. 01085_ K-01 Serf cleans the Pressure Siphon. 01093_ S-27 Virus destroyed. 01097_ Cesium-ion Thruster destroyed. 01101_ S-27 Virus destroyed. 01108_ Lgt. Nuclear Core severed. 01108_ Xenon Bombardment Thruster destroyed. 01111_ Autogun severed. 01113_ Aluminum Leg severed. 01113_ R-06 Scavenger collects Lgt. Nuclear Core. 01115_ G-47 Trooper destroyed. 01116_ R-06 Scavenger collects Autogun. 01118_ G-47 Trooper destroyed. 01118_ Xenon Bombardment Thruster destroyed. 01123_ R-06 Scavenger collects Aluminum Leg. 01125_ Slug penetrates Assembly Bed. 01126_ Acquired 52 matter. 01127_ Drone sends a signal. 01127_ Greatsword destroyed. 01127_ Lgt. Angular Momentum Engine destroyed. Map ----- +----------------------------------------------------+ | ????# #????????????# """ # # | | ????# #????????????# # # | | ??? ????????????####+##### ####+##### | | ??# ???????????????? #### ## | | ? ??????????????? | | ? ?????????????? | | ? ?????????????? | | ??? ? ?????????????+ """ ! """"""" """ | | ???????????????????????# """ """"""" """ | | ???????????????????????# """ """"""" """ | | ???????????????????????# """ """"""" | | ???????????????????????# | | ???????????????????????# """ !/ """ | | ???????????????????????#""" """ !/ """ | | ???????????????????????#"T """ = """ | | ???????????????????????#""" """ | | ???????????????????????# | | ???????????????????????# """"" | | ???????????????????????# ? """"" | | ?????????????###############+#### """"" | | ?????????????# """""" """""" # """"" | | ?????????????# """"""*"""""" # ![[ | | ?????????????# """"""["""""" # ![ """"" | | ?????????????# """"""*"""""" # ![ """"" | | ?????????????# %= g Yr [ # """"" | | ?????????????# r gh @n % # """"" | | ?????????????# # | | ?????????????# s # | | ?????????????########################+#### | | ????????????????????????????# # | | ????????????????????????????# # | | ????????????????????????????# # | | ????????????????????????????# # "" | | ????????????????????????????# + " | | ????????????????????????????# # "F | | ????????????????????????????# # "" | | ????????????????????????????# # | | ????????????????????????????# ### | | ????????????????????????????# #?# | | ????????????????????????????# #?# | | ????????????????????????????# #?# """ | | ????????????????????????????##############?# """ | | ??????????????????????????????????????????? """ | | ???????????????????????????????????????????# ? | | ???????????????????????????????????????????? ? | | ????????????????????????????????????????????###+?# | | ?????????????????????????????????????????????????? | | ?????????????????????????????????????????????????? | | ?????????????????????????????????????????????????? | | ?????????????????????????????????????????????????? | +----------------------------------------------------+ Best States ------------- Heat Dissipation 34 Energy Generation 28 Energy Capacity 280 Matter Stores 300 Matter Capacity 300 Sight Range 16 Robot Scan Range 13 Terrain Scan Density 10 Resistance: KI 20 Resistance: TH 20 Resistance: EX 20 Resistance: EM 20 Resistance: I 20 Resistance: S 20 Resistance: P 20 Melee Speed Boost 20 Evasion (%) 64 Targeting Accuracy 10 Melee Accuracy 6 Item Schematics ----------------- None Robot Schematics ------------------ None Fabricated ------------ Nothing Alien Tech Used ----------------- None Achievements -------------- None Challenges ------------ None Game ------ Seed AntimatterFissionRay Manual? 0 Play Time 00:31:08 Cumulative 51.7 hours Start 2019.10.27 @ 18:55:14 End 2019.10.27 @ 20:17:05 Sessions 1 Manual Loads 0 Difficulty Adventurer Special Mode None Game No. 91 Rogue 75 Adventurer 8 Explorer 0 Win Type - Total 0 Types 0/0/0/0/0/0/0 Lore% 27 Gallery% 43 Achievement% 30 Wizard Run 0 Options --------- ASCII 0 Keyboard 0 Movement Numpad Keybinds 0 Fullscreen 1 Font 12/Tallcaps Map View 83x54 Tactical HUD 1 Map Filters NONE Filters NONE Steam 1 RUN: 898c3258-00f5-4cb5-948b-9b455c93d8ee